fUST/lending_fUST_20250129
["ID","MTS","AMOUNT","RATE_DAILY","PERIOD"]
[350720514,1738080640226,-500.0,0.00016438,2]
[350720515,1738080640236,-526.88564986,0.00016438,2]
[350720516,1738080640245,-500.0,0.00016438,2]
[350720517,1738080640255,-500.0,0.00016438,2]
[350720518,1738080640266,-500.0,0.00016438,2]
[350720519,1738080640275,-500.0,0.00016438,2]
[350720520,1738080640285,-500.0,0.00016438,2]
[350720521,1738080640296,-500.0,0.00016438,2]
[350720523,1738080640516,-1119.02,0.00016438,2]
[350720524,1738080640531,-500.0,0.00016438,2]
[350720525,1738080640542,-500.0,0.00016438,2]
[350720527,1738080640552,-500.0,0.00016438,2]
[350720528,1738080640562,-500.0,0.00016438,2]
[350720529,1738080640572,-500.0,0.00016438,2]
[350720530,1738080640581,-500.0,0.00016438,2]
[350720531,1738080640591,-500.0,0.00016438,2]
[350720532,1738080640601,-500.0,0.00016438,2]
[350720533,1738080640611,-500.0,0.00016438,2]
[350720534,1738080640621,-933.68,0.00016438,2]
[350720535,1738080640631,-500.0,0.00016438,2]
[350720536,1738080640641,-500.0,0.00016438,2]
[350720537,1738080640651,-500.0,0.00016438,2]
[350720538,1738080640664,-500.0,0.00016438,2]
[350720539,1738080640674,-500.0,0.00016438,2]
[350720540,1738080640684,-501.29626383,0.00016438,2]
[350720541,1738080640694,-500.0,0.00016438,2]
[350720542,1738080640704,-500.0,0.00016438,2]
[350720543,1738080640714,-500.0,0.00016438,2]
[350720544,1738080640724,-500.0,0.00016438,2]
[350720545,1738080640734,-504.04473177,0.00016438,2]
[350720546,1738080640744,-512.36,0.00016438,2]
[350720547,1738080640754,-500.0,0.00016438,2]
[350720548,1738080640764,-500.0,0.00016438,2]
[350720549,1738080640773,-500.0,0.00016438,2]
[350720550,1738080640783,-500.0,0.00016438,2]
[350720551,1738080640793,-500.0,0.00016438,2]
[350720552,1738080640804,-382.83,0.00016438,2]
[350720553,1738080640814,-500.0,0.00016438,2]
[350720554,1738080640825,-503.46484979,0.00016438,2]
[350720555,1738080640835,-500.0,0.00016438,2]
[350720556,1738080640844,-500.0,0.00016438,2]
[350720557,1738080640854,-500.0,0.00016438,2]
[350720558,1738080640863,-609.35,0.00016438,2]
[350720559,1738080640873,-500.0,0.00016438,2]
[350720560,1738080640882,-500.0,0.00016438,2]
[350720561,1738080640892,-500.0,0.00016438,2]
[350720562,1738080640902,-500.0,0.00016438,2]
[350720563,1738080640914,-310.00981694,0.00016438,2]
[350720564,1738080640923,-500.0,0.00016438,2]
[350720565,1738080640933,-500.0,0.00016438,2]
[350720566,1738080640942,-520.96,0.00016438,2]
[350720567,1738080640952,-520.96,0.00016438,2]
[350720568,1738080640961,-520.96,0.00016438,2]
[350720569,1738080640971,-354.74300017,0.00016438,2]
[350720570,1738080640981,-520.96,0.00016438,2]
[350720571,1738080640991,-500.0,0.00016438,2]
[350720572,1738080641000,-520.96,0.00016438,2]
[350720573,1738080641010,-500.0,0.00016438,2]
[350720574,1738080641020,-520.96,0.00016438,2]
[350720575,1738080641029,-520.96,0.00016438,2]
[350720576,1738080641040,-520.96,0.00016438,2]
[350720577,1738080641050,-520.96,0.00016438,2]
[350720578,1738080641060,-520.96,0.00016438,2]
[350720579,1738080641070,-520.96,0.00016438,2]
[350720580,1738080641080,-520.96,0.00016438,2]
[350720581,1738080641090,-520.96,0.00016438,2]
[350720582,1738080641100,-520.96,0.00016438,2]
[350720583,1738080641113,-520.96,0.00016438,2]
[350720584,1738080641123,-520.96,0.00016438,2]
[350720585,1738080641133,-520.96,0.00016438,2]
[350720586,1738080641143,-520.96,0.00016438,2]
[350720587,1738080641154,-501.55387373,0.00016438,2]
[350720588,1738080641166,-1633.89,0.00016438,2]
[350720589,1738080641175,-500.0,0.00016438,2]
[350720590,1738080641185,-500.0,0.00016438,2]
[350720591,1738080641195,-500.0,0.00016438,2]
[350720592,1738080641205,-208.54312881,0.00016438,2]
[350720593,1738080641215,-500.0,0.00016438,2]
[350720594,1738080641225,-500.0,0.00016438,2]
[350720595,1738080641234,-500.0,0.00016438,2]
[350720596,1738080641244,-503.56454569,0.00016438,2]
[350720597,1738080641253,-500.0,0.00016438,2]
[350720598,1738080641263,-500.0,0.00016438,2]
[350720599,1738080641273,-170.56,0.00016438,2]
[350720600,1738080641284,-500.0,0.00016438,2]
[350720601,1738080641294,-500.0,0.00016438,2]
[350720602,1738080641303,-500.0,0.00016438,2]
[350720603,1738080641313,-3826.31,0.00016438,2]
[350720604,1738080641323,-500.0,0.00016438,2]
[350720605,1738080641333,-393.86964203,0.00016438,2]
[350720606,1738080641343,-500.0,0.00016438,2]
[350720607,1738080641352,-500.0,0.00016438,2]
[350720608,1738080641362,-500.0,0.00016438,2]
[350720609,1738080641372,-3067.13,0.00016438,2]
[350720610,1738080641382,-290.7942443,0.00016438,2]
[350720611,1738080641391,-500.0,0.00016468,2]
[350720612,1738080641401,-500.8551011,0.00016473,2]
[350720613,1738080641413,-350.55443282,0.00016473,2]
[350720614,1738080641424,-166.3368559,0.00016475,2]
[350720615,1738080641433,-500.0,0.00016573,2]
[350720616,1738080641444,-500.0,0.00016573,2]
[350720617,1738080641454,-500.0,0.00016573,2]
[350720618,1738080641464,-520.96,0.00016574,2]
[350720619,1738080641474,-520.96,0.00016574,2]
[350720620,1738080641484,-520.96,0.00016574,2]
[350720621,1738080641494,-520.96,0.00016574,2]
[350720622,1738080641503,-520.96,0.00016574,2]
[350720623,1738080641514,-521.12138089,0.00016574,2]
[350720624,1738080641523,-513.0595766,0.00016575,2]
[350720625,1738080641533,-500.0,0.00016575,2]
[350720626,1738080641543,-500.0,0.00016575,2]
[350720627,1738080641553,-500.0,0.00016575,2]
[350720628,1738080641563,-500.0,0.00016575,2]
[350720629,1738080641573,-500.0,0.00016575,2]
[350720630,1738080641584,-500.0,0.00016575,2]
[350720631,1738080641594,-568.48766951,0.00016575,2]
[350720632,1738080641604,-500.0,0.00016575,2]
[350720633,1738080641614,-500.0,0.00016575,2]
[350720634,1738080641623,-500.0,0.00016575,2]
[350720635,1738080641633,-500.0,0.00016575,2]
[350720636,1738080641644,-500.0,0.00016575,2]
[350720637,1738080641654,-215.16305283,0.00016575,2]
[350720638,1738080641664,-500.0,0.00016575,2]
[350720639,1738080641674,-500.0,0.00016575,2]
[350720640,1738080641683,-628.17678649,0.00016575,2]
[350720641,1738080641693,-500.0,0.00016575,2]
[350720642,1738080641703,-500.0,0.00016575,2]
[350720643,1738080641713,-500.0,0.00016575,2]
[350720644,1738080641723,-500.0,0.00016575,2]
[350720645,1738080641733,-500.0,0.00016575,2]
[350720646,1738080641744,-500.0,0.00016575,2]
[350720647,1738080641754,-500.0,0.00016575,2]
[350720648,1738080641763,-500.0,0.00016575,2]
[350720649,1738080641773,-586.86555641,0.00016575,2]
[350720650,1738080641783,-425.17297494,0.00016575,2]
[350720651,1738080641792,-202.63,0.00016575,2]
[350720652,1738080641801,-500.0,0.00016575,2]
[350720653,1738080641811,-500.0,0.00016575,2]
[350720654,1738080641821,-500.0,0.00016575,2]
[350720655,1738080641831,-500.0,0.00016575,2]
[350720656,1738080641842,-501.03035887,0.00016575,2]
[350720657,1738080641851,-500.0,0.00016575,2]
[350720658,1738080641862,-473.13,0.00016575,2]
[350720659,1738080641872,-500.0,0.00016575,2]
[350720660,1738080641882,-500.0,0.00016575,2]
[350720661,1738080641891,-500.0,0.00016575,2]
[350720662,1738080641901,-500.0,0.00016575,2]
[350720663,1738080641910,-500.0,0.00016575,2]
[350720664,1738080641921,-500.0,0.00016575,2]
[350720665,1738080641930,-500.0,0.00016575,2]
[350720666,1738080641940,-500.0,0.00016575,2]
[350720667,1738080641950,-500.0,0.00016575,2]
[350720668,1738080641959,-500.0,0.00016575,2]
[350720669,1738080641969,-500.0,0.00016575,2]
[350720670,1738080641979,-500.0,0.00016575,2]
[350720671,1738080641988,-284.40452603,0.00016575,2]
[350720672,1738080641998,-500.0,0.00016575,2]
[350720673,1738080642008,-500.0,0.00016575,2]
[350720674,1738080642018,-500.0,0.00016575,2]
[350720675,1738080642028,-529.06997698,0.00016575,2]
[350720676,1738080642038,-500.0,0.00016575,2]
[350720677,1738080642048,-500.0,0.00016575,2]
[350720678,1738080642058,-326.11538359,0.00016575,2]
[350720679,1738080642068,-500.0,0.00016575,2]
[350720680,1738080642077,-500.0,0.00016575,2]
[350720681,1738080642087,-500.0,0.00016575,2]
[350720682,1738080642096,-500.0,0.00016575,2]
[350720683,1738080642111,-500.0,0.00016575,2]
[350720684,1738080642121,-500.0,0.00016575,2]
[350720685,1738080642131,-168.99317469,0.00016575,2]
[350720686,1738080642141,-500.0,0.00016575,2]
[350720687,1738080642151,-500.0,0.00016575,2]
[350720688,1738080642161,-594.71784142,0.00016575,2]
[350720689,1738080642176,-500.0,0.00016575,2]
[350720690,1738080642186,-387.4218761,0.00016575,2]
[350720691,1738080642196,-526.54790485,0.00016575,2]
[350720692,1738080642206,-500.0,0.00016575,2]
[350720693,1738080642216,-501.10830904,0.00016575,2]
[350720694,1738080642226,-227.98098343,0.00016575,2]
[350720695,1738080642236,-552.20278639,0.00016575,2]
[350720696,1738080642246,-500.0,0.00016575,2]
[350720697,1738080642256,-500.0,0.00016575,2]
[350720698,1738080642265,-501.24661628,0.00016575,2]
[350720699,1738080642275,-500.0,0.00016575,2]
[350720700,1738080642284,-500.0,0.00016575,2]
[350720701,1738080642294,-500.0,0.00016575,2]
[350720702,1738080642304,-501.42543351,0.00016575,2]
[350720703,1738080642314,-500.0,0.00016575,2]
[350720704,1738080642324,-500.0,0.00016575,2]
[350720705,1738080642334,-500.0,0.00016575,2]
[350720706,1738080642345,-500.0,0.00016575,2]
[350720707,1738080642355,-500.0,0.00016575,2]
[350720708,1738080642365,-500.0,0.00016575,2]
[350720709,1738080642375,-500.0,0.00016575,2]
[350720710,1738080642384,-500.0,0.00016575,2]
[350720711,1738080642394,-500.0,0.00016575,2]
[350720712,1738080642404,-500.0,0.00016575,2]
[350720713,1738080642415,-726.8,0.00016575,2]
[350720714,1738080642425,-360.07775848,0.00016575,2]
[350720715,1738080642435,-500.0,0.00016575,2]
[350720716,1738080642444,-501.7655275,0.00016575,2]
[350720717,1738080642454,-500.0,0.00016575,2]
[350720718,1738080642463,-369.45751949,0.00016575,2]
[350720719,1738080642473,-500.0,0.00016575,2]
[350720720,1738080642482,-500.0,0.00016575,2]
[350720721,1738080642492,-501.49518036,0.00016575,2]
[350720722,1738080642502,-500.0,0.00016575,2]
[350720723,1738080642512,-500.0,0.00016575,2]
[350720724,1738080642522,-500.0,0.00016575,2]
[350720725,1738080642531,-513.45408346,0.00016575,2]
[350720726,1738080642541,-1525.37,0.00016575,2]
[350720727,1738080642552,-500.0,0.00016575,2]
[350720728,1738080642561,-945.28,0.00016575,2]
[350720729,1738080642571,-500.0,0.00016575,2]
[350720730,1738080642580,-500.0,0.00016575,2]
[350720731,1738080642590,-500.0,0.00016575,2]
[350720732,1738080642599,-500.0,0.00016575,2]
[350720733,1738080642608,-5167.09,0.00016575,2]
[350720734,1738080642618,-1188.86,0.00016575,2]
[350720735,1738080642627,-500.0,0.00016575,2]
[350720736,1738080642637,-500.0,0.00016575,2]
[350720737,1738080642646,-500.0,0.00016575,2]
[350720738,1738080642656,-500.0,0.00016575,2]
[350720739,1738080642666,-675.57,0.00016575,2]
[350720740,1738080642676,-500.0,0.00016575,2]
[350720741,1738080642685,-500.0,0.00016575,2]
[350720742,1738080642696,-500.0,0.00016575,2]
[350720743,1738080642705,-500.0,0.00016575,2]
[350720744,1738080642715,-500.0,0.00016575,2]
[350720745,1738080642725,-500.0,0.00016575,2]
[350720746,1738080642735,-500.0,0.00016575,2]
[350720747,1738080642745,-500.0,0.00016575,2]
[350720748,1738080642755,-13229.25,0.00016575,2]
[350720749,1738080642764,-484.61315533,0.00016575,2]
[350720750,1738080642774,-526.9,0.00016575,2]
[350720751,1738080642785,-500.0,0.00016575,2]
[350720752,1738080642795,-274.31512796,0.00016575,2]
[350720763,1738080643039,-225.68487204,0.00016575,2]
[350720765,1738080643050,-213.31512796,0.00016575,2]
[350720767,1738080643064,-286.68487204,0.00016575,2]
[350720769,1738080643074,-500.0,0.00016575,2]
[350720770,1738080643084,-500.0,0.00016575,2]
[350720772,1738080643094,-564.74,0.00016575,2]
[350720775,1738080643104,-1278.37,0.00016575,2]
[350720777,1738080643116,-500.0,0.00016575,2]
[350720780,1738080643126,-2274.11,0.00016575,2]
[350720783,1738080643136,-500.0,0.00016575,2]
[350720786,1738080643145,-271.53730881,0.00016575,2]
[350720788,1738080643155,-500.0,0.00016575,2]
[350720790,1738080643165,-272.26056296,0.00016575,2]
[350720791,1738080643174,-500.0,0.00016575,2]
[350720794,1738080643185,-1119.02,0.00016575,2]
[350720797,1738080643195,-500.0,0.00016575,2]
[350720799,1738080643205,-500.0,0.00016575,2]
[350720801,1738080643214,-515.79713349,0.00016575,2]
[350720802,1738080643223,-500.0,0.00016575,2]
[350720804,1738080643233,-500.0,0.00016575,2]
[350720806,1738080643243,-500.0,0.00016575,2]
[350720807,1738080643253,-500.0,0.00016575,2]
[350720808,1738080643263,-933.68,0.00016575,2]
[350720809,1738080643273,-500.0,0.00016575,2]
[350720810,1738080643283,-500.0,0.00016575,2]
[350720812,1738080643293,-500.0,0.00016575,2]
[350720814,1738080643303,-500.0,0.00016575,2]
[350720816,1738080643313,-500.0,0.00016575,2]
[350720818,1738080643324,-512.36,0.00016575,2]
[350720820,1738080643334,-500.0,0.00016575,2]
[350720821,1738080643344,-503.84730863,0.00016575,2]
[350720822,1738080643354,-500.0,0.00016575,2]
[350720823,1738080643365,-500.0,0.00016575,2]
[350720824,1738080643375,-484.21608894,0.00016575,2]
[350720825,1738080643386,-500.0,0.00016575,2]
[350720827,1738080643396,-504.28223705,0.00016575,2]
[350720829,1738080643407,-500.0,0.00016575,2]
[350720831,1738080643417,-500.0,0.00016575,2]
[350720833,1738080643427,-500.0,0.00016575,2]
[350720834,1738080643437,-1633.89,0.00016575,2]
[350720835,1738080643447,-500.0,0.00016575,2]
[350720836,1738080643456,-500.0,0.00016575,2]
[350720837,1738080643466,-500.0,0.00016575,2]
[350720838,1738080643476,-500.0,0.00016575,2]
[350720839,1738080643486,-500.0,0.00016575,2]
[350720840,1738080643496,-500.0,0.00016575,2]
[350720841,1738080643506,-500.0,0.00016575,2]
[350720842,1738080643515,-3826.31,0.00016575,2]
[350720843,1738080643525,-326.2,0.00016575,2]
[350720844,1738080643535,-500.0,0.00016575,2]
[350720845,1738080643544,-500.0,0.00016575,2]
[350720846,1738080643555,-500.0,0.00016575,2]
[350720847,1738080643564,-500.0,0.00016712,2]
[350720848,1738080643574,-500.0,0.00016712,2]
[350720849,1738080643584,-500.0,0.00016712,2]
[350720850,1738080643594,-500.0,0.00016712,2]
[350720851,1738080643605,-500.0,0.00016712,2]
[350720852,1738080643614,-500.0,0.00016712,2]
[350720853,1738080643624,-500.0,0.00016712,2]
[350720854,1738080643634,-500.0,0.00016712,2]
[350720855,1738080643644,-500.0,0.00016712,2]
[350720856,1738080643655,-522.06,0.00016712,2]
[350720857,1738080643665,-500.0,0.00016712,2]
[350720858,1738080643675,-500.0,0.00016712,2]
[350720859,1738080643684,-500.0,0.00016712,2]
[350720860,1738080643695,-500.0,0.00016712,2]
[350720861,1738080643704,-500.0,0.00016712,2]
[350720862,1738080643714,-500.0,0.00016712,2]
[350720863,1738080643723,-500.0,0.00016712,2]
[350720864,1738080643733,-500.0,0.00016712,2]
[350720865,1738080643743,-500.0,0.00016712,2]
[350720866,1738080643753,-500.0,0.00016712,2]
[350720867,1738080643763,-500.0,0.00016712,2]
[350720868,1738080643773,-500.0,0.00016712,2]
[350720869,1738080643783,-500.0,0.00016712,2]
[350720870,1738080643793,-500.0,0.00016712,2]
[350720871,1738080643802,-500.0,0.00016712,2]
[350720872,1738080643812,-571.13292691,0.00016712,2]
[350720873,1738080643822,-500.0,0.00016712,2]
[350720874,1738080643831,-500.0,0.00016712,2]
[350720875,1738080643841,-500.0,0.00016712,2]
[350720876,1738080643852,-500.0,0.00016712,2]
[350720877,1738080643862,-500.0,0.00016712,2]
[350720878,1738080643872,-500.0,0.00016712,2]
[350720879,1738080643881,-190.49546711,0.00016712,2]
[350720880,1738080643943,-309.50453289,0.00016712,2]
[350720881,1738080643952,-232.54546711,0.00016712,2]
[350720882,1738080643965,-79.17453289,0.00016712,2]
[350720883,1738080643975,-500.0,0.00016712,2]
[350720884,1738080643984,-500.0,0.00016712,2]
[350720885,1738080643994,-500.0,0.00016712,2]
[350720886,1738080644005,-500.0,0.00016712,2]
[350720887,1738080644014,-500.0,0.00016712,2]
[350720888,1738080644024,-500.0,0.00016712,2]
[350720889,1738080644034,-500.0,0.00016712,2]
[350720890,1738080644044,-500.0,0.00016712,2]
[350720891,1738080644054,-501.40825451,0.00016712,2]
[350720892,1738080644065,-500.0,0.00016712,2]
[350720893,1738080644075,-500.0,0.00016712,2]
[350720894,1738080644085,-427.77575011,0.00016712,2]
[350720895,1738080644095,-500.0,0.00016712,2]
[350720896,1738080644108,-500.0,0.00016712,2]
[350720897,1738080644118,-173.05627769,0.00016712,2]
[350720898,1738080644280,-1530.28682995,0.00016575,2]
[350720899,1738080644297,-1536.84317005,0.00016575,2]
[350720900,1738080644307,-326.94372231,0.00016712,2]
[350720901,1738080644316,-500.0,0.00016712,2]
[350720902,1738080644327,-500.0,0.00016712,2]
[350720903,1738080644336,-500.0,0.00016712,2]
[350720904,1738080644346,-500.0,0.00016712,2]
[350720905,1738080644356,-500.0,0.00016712,2]
[350720906,1738080644365,-1525.37,0.00016712,2]
[350720907,1738080644375,-500.0,0.00016712,2]
[350720908,1738080644384,-945.28,0.00016712,2]
[350720909,1738080644393,-500.0,0.00016712,2]
[350720910,1738080644403,-500.0,0.00016712,2]
[350720911,1738080644413,-500.0,0.00016712,2]
[350720912,1738080644423,-500.0,0.00016712,2]
[350720913,1738080644432,-5167.09,0.00016712,2]
[350720914,1738080644443,-1188.86,0.00016712,2]
[350720915,1738080644452,-610.08253619,0.00016712,2]
[350720916,1738080644462,-500.0,0.00016712,2]
[350720917,1738080644472,-500.0,0.00016712,2]
[350720918,1738080644481,-42.87755901,0.00016712,2]
[350720935,1738080646705,-132.75123811,0.00016712,2]
[350720936,1738080646719,-499.94120288,0.00016712,2]
[350720937,1738080646728,-500.0,0.00016712,2]
[350720938,1738080646738,-508.49828736,0.00016712,2]
[350720939,1738080646747,-500.0,0.00016712,2]
[350720940,1738080646757,-500.0,0.00016712,2]
[350720941,1738080646766,-500.0,0.00016712,2]
[350720942,1738080646775,-500.0,0.00016712,2]
[350720943,1738080646784,-13229.25,0.00016712,2]
[350720944,1738080646794,-526.9,0.00016712,2]
[350720945,1738080646803,-232.7153414,0.00016712,2]
[350720946,1738080646812,-500.0,0.00016712,2]
[350720947,1738080646822,-500.0,0.00016712,2]
[350720948,1738080646831,-500.0,0.00016712,2]
[350720949,1738080646840,-564.74,0.00016712,2]
[350720950,1738080646850,-1278.37,0.00016712,2]
[350720951,1738080646859,-2274.11,0.00016712,2]
[350720952,1738080646868,-500.0,0.00016712,2]
[350720953,1738080646877,-500.0,0.00016712,2]
[350720954,1738080646887,-1119.02,0.00016712,2]
[350720955,1738080646898,-500.0,0.00016712,2]
[350720956,1738080646910,-500.0,0.00016712,2]
[350720957,1738080646919,-500.0,0.00016712,2]
[350720958,1738080646929,-500.0,0.00016712,2]
[350720959,1738080646939,-500.0,0.00016712,2]
[350720960,1738080646950,-933.68,0.00016712,2]
[350720961,1738080646959,-500.0,0.00016712,2]
[350720962,1738080646968,-500.0,0.00016712,2]
[350720963,1738080646977,-500.0,0.00016712,2]
[350720964,1738080646987,-193.41356865,0.00016712,2]
[350720965,1738080646997,-512.36,0.00016712,2]
[350720966,1738080647006,-500.0,0.00016712,2]
[350720967,1738080647016,-500.0,0.00016712,2]
[350720968,1738080647025,-500.0,0.00016712,2]
[350720969,1738080647037,-500.0,0.00016712,2]
[350720970,1738080647047,-500.0,0.00016712,2]
[350720971,1738080647057,-500.0,0.00016712,2]
[350720972,1738080647066,-500.0,0.00016712,2]
[350720973,1738080647076,-1633.89,0.00016712,2]
[350720974,1738080647085,-500.0,0.00016712,2]
[350720975,1738080647095,-500.0,0.00016712,2]
[350720976,1738080647106,-500.0,0.00016712,2]
[350720977,1738080647120,-497.46751082,0.00016712,2]
[350720984,1738080787086,186.955173,0.00013973,2]
[350720985,1738080859273,888.9,0.0002074,120]
[350720992,1738081166559,162.1301346,0.00015044,2]
[350720993,1738081230422,2344.40425216,0.0001514,2]
[350720994,1738081269261,378.10291684,0.0001514,2]
[350720998,1738081552483,18327.80554651,0.00015063,2]
[350720999,1738081552515,1853.00931779,0.00015063,2]
[350721001,1738081566744,179.3730352,0.00013699,2]
[350721005,1738081629139,-480.360857,0.00015154,2]
[350721006,1738081629166,-440.709223,0.00015154,2]
[350721007,1738081630051,189.351157,0.00013973,2]
[350721009,1738081693458,532.8171331,0.00014987,2]
[350721011,1738081751151,-351.0892727,0.00015154,2]
[350721012,1738081751173,-982.01540464,0.00015179,2]
[350721057,1738081832988,-166.34340306,0.00015179,2]
[350721058,1738081832998,-297.47270815,0.00015346,2]
[350721059,1738081833010,-300.0,0.00015411,2]
[350721060,1738081833020,-1773.06553759,0.00015412,2]
[350721061,1738081833034,-21102.69441942,0.00015412,2]
[350721129,1738081838861,-2024.24004299,0.00015412,2]
[350721130,1738081838871,-894.11567878,0.00016337,2]
[350721131,1738081838882,-500.0,0.00016437,2]
[350721132,1738081838892,-500.0,0.00016437,2]
[350721133,1738081838902,-500.0,0.00016437,2]
[350721134,1738081838911,-500.0,0.00016437,2]
[350721135,1738081838921,-500.0,0.00016437,2]
[350721136,1738081838932,-500.0,0.00016437,2]
[350721137,1738081838941,-613.43697821,0.00016437,2]
[350721138,1738081838951,-500.0,0.00016437,2]
[350721139,1738081838961,-500.0,0.00016437,2]
[350721140,1738081838974,-500.0,0.00016437,2]
[350721141,1738081838983,-500.0,0.00016437,2]
[350721143,1738081838992,-519.58668837,0.00016437,2]
[350721145,1738081839002,-500.0,0.00016437,2]
[350721146,1738081839013,-500.0,0.00016437,2]
[350721147,1738081839024,-500.0,0.00016437,2]
[350721148,1738081839033,-500.0,0.00016437,2]
[350721149,1738081839043,-500.0,0.00016437,2]
[350721150,1738081839052,-500.0,0.00016437,2]
[350721151,1738081839061,-500.0,0.00016437,2]
[350721152,1738081839071,-500.0,0.00016437,2]
[350721153,1738081839080,-500.0,0.00016437,2]
[350721154,1738081839089,-500.0,0.00016437,2]
[350721155,1738081839099,-500.0,0.00016437,2]
[350721156,1738081839109,-500.0,0.00016437,2]
[350721157,1738081839118,-500.0,0.00016437,2]
[350721158,1738081839128,-500.0,0.00016437,2]
[350721159,1738081839138,-220.92661977,0.00016438,2]
[350721160,1738081839147,-500.0,0.00016438,2]
[350721161,1738081839158,-323.70288888,0.00016438,2]
[350721177,1738081840852,-176.29711112,0.00016438,2]
[350721178,1738081840862,-500.0,0.00016438,2]
[350721179,1738081840872,-500.0,0.00016438,2]
[350721180,1738081840882,-500.0,0.00016438,2]
[350721181,1738081840892,-500.0,0.00016438,2]
[350721182,1738081840902,-500.0,0.00016438,2]
[350721183,1738081840912,-500.0,0.00016438,2]
[350721184,1738081840924,-500.0,0.00016438,2]
[350721185,1738081840936,-500.0,0.00016438,2]
[350721186,1738081840946,-108.98522076,0.00016438,2]
[350721187,1738081840959,-391.01477924,0.00016438,2]
[350721189,1738081840968,-500.0,0.00016438,2]
[350721191,1738081840978,-500.0,0.00016438,2]
[350721192,1738081840988,-500.0,0.00016438,2]
[350721193,1738081840998,-500.0,0.00016438,2]
[350721194,1738081841008,-500.0,0.00016438,2]
[350721195,1738081841017,-500.0,0.00016438,2]
[350721196,1738081841027,-500.0,0.00016438,2]
[350721197,1738081841037,-500.0,0.00016438,2]
[350721198,1738081841046,-500.0,0.00016438,2]
[350721199,1738081841056,-500.0,0.00016438,2]
[350721200,1738081841065,-500.0,0.00016438,2]
[350721201,1738081841075,-500.0,0.00016438,2]
[350721202,1738081841084,-227.60682575,0.00016438,2]
[350721203,1738081841094,-500.0,0.00016438,2]
[350721204,1738081841103,-571.12687157,0.00016438,2]
[350721205,1738081841113,-500.0,0.00016438,2]
[350721206,1738081841122,-500.0,0.00016438,2]
[350721207,1738081841131,-500.0,0.00016438,2]
[350721208,1738081841141,-500.0,0.00016438,2]
[350721209,1738081841150,-500.0,0.00016438,2]
[350721210,1738081841160,-500.0,0.00016438,2]
[350721211,1738081841171,-500.0,0.00016438,2]
[350721212,1738081841184,-500.0,0.00016438,2]
[350721213,1738081841194,-500.0,0.00016438,2]
[350721214,1738081841203,-500.0,0.00016438,2]
[350721215,1738081841213,-500.0,0.00016438,2]
[350721216,1738081841223,-500.0,0.00016438,2]
[350721217,1738081841233,-500.0,0.00016438,2]
[350721218,1738081841242,-500.0,0.00016438,2]
[350721219,1738081841251,-511.07127054,0.00016438,2]
[350721220,1738081841261,-500.0,0.00016438,2]
[350721221,1738081841270,-500.0,0.00016438,2]
[350721222,1738081841279,-500.0,0.00016438,2]
[350721223,1738081841289,-500.0,0.00016438,2]
[350721224,1738081841298,-500.0,0.00016438,2]